fUSD/lending_fUSD_20250804
["ID","MTS","AMOUNT","RATE_DAILY","PERIOD"]
[377213028,1754293867634,-903.96,0.00046849,120]
[377213029,1754293867643,-400.0,0.00046849,120]
[377213030,1754293867653,-401.11998527,0.00046849,120]
[377213031,1754293867663,-413.99,0.00046849,120]
[377213032,1754293867673,-400.0,0.00046849,120]
[377213033,1754293867682,-850.09,0.00046849,120]
[377213034,1754293867692,-400.0,0.00046849,120]
[377213035,1754293867702,-400.0,0.00046849,120]
[377213036,1754293867712,-1108.92,0.00046849,120]
[377213037,1754293867722,-400.0,0.00046849,120]
[377213038,1754293867732,-400.0,0.00046849,120]
[377213039,1754293867742,-600.99,0.00046849,120]
[377213040,1754293867751,-151.0,0.00046849,14]
[377213041,1754293867761,-400.0,0.00046849,120]
[377213042,1754293867771,-155.47109,0.00046849,14]
[377213043,1754293867782,-1306.49,0.00046849,120]
[377213044,1754293867792,-400.0,0.00046849,120]
[377213045,1754293867803,-400.0,0.00046849,120]
[377213046,1754293867813,-400.0,0.00046849,120]
[377213047,1754293867822,-400.0,0.00046849,120]
[377213048,1754293867832,-669.71,0.00046849,120]
[377213049,1754293867842,-256.740037,0.00046849,14]
[377213050,1754293867852,-529.97,0.00046849,120]
[377213051,1754293867862,-400.0,0.00046849,120]
[377213052,1754293867872,-400.0,0.00046849,120]
[377213053,1754293867882,-451.38,0.00046849,120]
[377213054,1754293867891,-400.0,0.00046849,120]
[377213055,1754293867901,-400.0,0.00046849,120]
[377213056,1754293867911,-151.0,0.00046849,14]
[377213057,1754293867920,-151.0,0.00046849,14]
[377213058,1754293867930,-400.0,0.00046849,120]
[377213059,1754293867939,-264.169364,0.00046849,14]
[377213060,1754293867949,-264.169364,0.00046849,14]
[377213061,1754293867958,-896.35,0.00046849,120]
[377213062,1754293867968,-400.0,0.00046849,2]
[377213063,1754293867978,-264.169364,0.00046849,14]
[377213064,1754293867989,-264.169364,0.00046849,14]
[377213065,1754293867998,-400.0,0.00046849,120]
[377213066,1754293868008,-400.0,0.00046849,120]
[377213067,1754293868017,-1493.42,0.00046849,120]
[377213068,1754293868027,-462.52,0.00046849,120]
[377213069,1754293868039,-1437.32,0.00046849,120]
[377213070,1754293868049,-934.84,0.00046849,120]
[377213071,1754293868058,-504.36,0.00046849,120]
[377213072,1754293868068,-400.0,0.00046849,120]
[377213073,1754293868077,-403.53481152,0.00046849,120]
[377213074,1754293868086,-400.0,0.00046849,120]
[377213075,1754293868095,-400.0,0.00046849,120]
[377213076,1754293868105,-151.0,0.00046849,14]
[377213077,1754293868114,-151.0,0.00046849,14]
[377213078,1754293868126,-400.0,0.00046849,120]
[377213079,1754293868135,-400.0,0.00046849,120]
[377213080,1754293868145,-400.0,0.00046849,120]
[377213081,1754293868155,-451.2,0.00046849,120]
[377213082,1754293868164,-401.87299053,0.00046849,120]
[377213083,1754293868175,-400.0,0.00046849,120]
[377213084,1754293868185,-939.74,0.00046849,120]
[377213085,1754293868195,-1003.82,0.00046849,120]
[377213086,1754293868208,-400.0,0.00046849,120]
[377213087,1754293868218,-400.0,0.00046849,120]
[377213088,1754293868228,-400.0,0.00046849,120]
[377213089,1754293868239,-577.35,0.00046849,120]
[377213090,1754293868249,-404.78551888,0.00046849,120]
[377213091,1754293868259,-400.0,0.00046849,120]
[377213092,1754293868268,-400.0,0.00046849,120]
[377213093,1754293868278,-151.0,0.00046849,14]
[377213094,1754293868288,-151.0,0.00046849,14]
[377213095,1754293868297,-400.0,0.00046849,120]
[377213096,1754293868306,-400.0,0.00046849,120]
[377213097,1754293868315,-1680.69,0.00046849,120]
[377213098,1754293868325,-400.0,0.00046849,120]
[377213099,1754293868334,-400.0,0.00046849,120]
[377213100,1754293868345,-462.583697,0.00046849,30]
[377213101,1754293868354,-1281.8,0.00046849,120]
[377213102,1754293868364,-400.0,0.00046849,120]
[377213103,1754293868374,-405.41,0.00046849,120]
[377213104,1754293868385,-429.17,0.00046849,120]
[377213105,1754293868396,-400.0,0.00046849,120]
[377213106,1754293868405,-400.0,0.00046849,120]
[377213107,1754293868416,-402.53952575,0.00046849,120]
[377213108,1754293868425,-400.0,0.00046849,120]
[377213109,1754293868435,-151.0,0.00046849,14]
[377213110,1754293868444,-2488.352271,0.00046849,14]
[377213111,1754293868453,-151.0,0.00046849,14]
[377213112,1754293868462,-2488.352271,0.00046849,14]
[377213113,1754293868471,-400.0,0.00046849,120]
[377213114,1754293868481,-151.0,0.00046849,14]
[377213115,1754293868490,-152.144183,0.00046849,14]
[377213116,1754293868500,-686.26,0.00046849,30]
[377213117,1754293868509,-2488.352271,0.00046849,14]
[377213118,1754293868519,-2488.352271,0.00046849,14]
[377213119,1754293868531,-400.89194781,0.00046849,120]
[377213120,1754293868540,-874.6,0.00046849,120]
[377213121,1754293868549,-400.0,0.00046849,120]
[377213122,1754293868558,-1204.43,0.00046849,120]
[377213123,1754293868568,-780.58,0.00046849,120]
[377213124,1754293868577,-400.0,0.00046849,120]
[377213125,1754293868586,-869.18,0.00046849,120]
[377213126,1754293868596,-400.0,0.00046849,120]
[377213127,1754293868605,-400.0,0.00046849,120]
[377213128,1754293868614,-1231.39,0.00046849,120]
[377213129,1754293868623,-400.0,0.00046849,120]
[377213130,1754293868633,-400.0,0.00046849,120]
[377213131,1754293868642,-548.66,0.00046849,120]
[377213132,1754293868651,-621.77,0.00046849,120]
[377213133,1754293868660,-596.51,0.00046849,120]
[377213134,1754293868670,-915.69,0.00046849,120]
[377213135,1754293868679,-400.0,0.00046849,120]
[377213136,1754293868688,-519.35,0.00046849,120]
[377213137,1754293868698,-151.0,0.00046849,14]
[377213138,1754293868707,-400.0,0.00046849,120]
[377213139,1754293868716,-934.32,0.00046849,120]
[377213140,1754293868725,-642.22,0.00046849,120]
[377213141,1754293868735,-151.0,0.00046849,14]
[377213142,1754293868745,-151.0,0.00046849,14]
[377213143,1754293868755,-583.14,0.00046849,120]
[377213144,1754293868764,-151.0,0.00046849,14]
[377213145,1754293868774,-810.88,0.00046849,120]
[377213146,1754293868786,-1614.75,0.00046849,120]
[377213147,1754293868795,-400.0,0.00046849,120]
[377213148,1754293868804,-1286.5,0.00046849,120]
[377213149,1754293868814,-400.0,0.00046849,120]
[377213150,1754293868823,-1166.35,0.00046849,120]
[377213151,1754293868832,-1045.48,0.00046849,120]
[377213152,1754293868842,-400.0,0.00046849,120]
[377213153,1754293868851,-808.25,0.00046849,120]
[377213154,1754293868861,-400.0,0.00046849,120]
[377213155,1754293868871,-413.71438832,0.00046849,120]
[377213156,1754293868880,-400.0,0.00046849,120]
[377213157,1754293868889,-400.0,0.00046849,120]
[377213158,1754293868899,-400.0,0.00046849,120]
[377213159,1754293868908,-400.0,0.00046849,120]
[377213160,1754293868918,-400.0,0.00046849,120]
[377213161,1754293868927,-1028.43,0.00046849,120]
[377213162,1754293868936,-1364.42,0.00046849,120]
[377213163,1754293868946,-400.0,0.00046849,120]
[377213164,1754293868955,-833.14,0.00046849,120]
[377213165,1754293868965,-400.0,0.00046849,120]
[377213166,1754293868976,-400.0,0.00046849,120]
[377213167,1754293868986,-1158.69,0.00046849,120]
[377213168,1754293868995,-400.0,0.00046849,120]
[377213169,1754293869006,-400.0,0.00046849,120]
[377213170,1754293869015,-400.0,0.00046849,120]
[377213171,1754293869024,-400.0,0.00046849,120]
[377213172,1754293869034,-151.0,0.00046849,14]
[377213173,1754293869043,-151.0,0.00046849,14]
[377213174,1754293869053,-151.0,0.00046849,14]
[377213175,1754293869062,-151.0,0.00046849,14]
[377213176,1754293869071,-400.0,0.00046849,120]
[377213177,1754293869080,-402.14397344,0.00046849,120]
[377213178,1754293869089,-400.0,0.00046849,120]
[377213179,1754293869099,-400.0,0.00046849,120]
[377213180,1754293869108,-412.8941549,0.00046849,120]
[377213181,1754293869119,-401.15531502,0.00046849,120]
[377213182,1754293869129,-461.31,0.00046849,120]
[377213183,1754293869138,-151.0,0.00046849,14]
[377213184,1754293869147,-151.0,0.00046849,14]
[377213185,1754293869157,-400.0,0.00046849,120]
[377213186,1754293869166,-641.89,0.00046849,120]
[377213187,1754293869176,-544.09,0.00046849,120]
[377213188,1754293869185,-151.0,0.00046849,14]
[377213189,1754293869194,-402.43698166,0.00046849,120]
[377213190,1754293869203,-151.0,0.00046849,14]
[377213191,1754293869212,-810.45,0.00046849,120]
[377213192,1754293869222,-733.98,0.00046849,120]
[377213193,1754293869231,-1385.55,0.00046849,120]
[377213194,1754293869240,-400.0,0.00046849,120]
[377213195,1754293869250,-400.0,0.00046849,120]
[377213196,1754293869259,-400.0,0.00046849,120]
[377213197,1754293869268,-1858.53,0.00046849,120]
[377213198,1754293869277,-1514.03,0.00046849,120]
[377213199,1754293869287,-3089.74,0.00046849,120]
[377213200,1754293869296,-400.0,0.00046849,120]
[377213201,1754293869305,-519.18,0.00046849,120]
[377213202,1754293869314,-400.0,0.00046849,120]
[377213203,1754293869323,-599.49,0.00046849,120]
[377213204,1754293869332,-200.48872519,0.00046849,120]
[377213205,1754293869342,-787.95,0.00046849,120]
[377213206,1754293869351,-400.0,0.00046849,120]
[377213207,1754293869362,-711.19,0.00046849,120]
[377213208,1754293869372,-1160.29,0.00046849,120]
[377213209,1754293869382,-400.0,0.00046849,120]
[377213210,1754293869393,-824.42,0.00046849,120]
[377213211,1754293869403,-400.0,0.00046849,120]
[377213212,1754293869516,-400.0,0.00046849,120]
[377213213,1754293869526,-400.0,0.00046849,120]
[377213214,1754293869536,-1000.0,0.00046849,120]
[377213215,1754293869545,-400.0,0.00046849,120]
[377213216,1754293869554,-400.0,0.00046849,120]
[377213217,1754293869563,-400.0,0.00046849,120]
[377213218,1754293869572,-995.56,0.00046849,120]
[377213219,1754293869581,-1780.07,0.00046849,120]
[377213220,1754293869591,-421.68,0.00046849,120]
[377213221,1754293869600,-1004.04,0.00046849,120]
[377213222,1754293869608,-1070.14,0.00046849,120]
[377213223,1754293869617,-400.0,0.00046849,120]
[377213224,1754293869627,-400.0,0.00046849,120]
[377213225,1754293869635,-1213.7,0.00046849,120]
[377213226,1754293869645,-400.0,0.00046849,120]
[377213227,1754293869655,-400.0,0.00046849,120]
[377213228,1754293869664,-400.0,0.00046849,120]
[377213229,1754293869673,-1119.51,0.00046849,120]
[377213230,1754293869683,-446.74,0.00046849,120]
[377213231,1754293869692,-1206.55,0.00046849,120]
[377213232,1754293869702,-400.0,0.00046849,120]
[377213233,1754293869711,-819.44,0.00046849,120]
[377213234,1754293869721,-400.0,0.00046849,120]
[377213235,1754293869731,-462.28687007,0.00046849,120]
[377213236,1754293869741,-719.07,0.00046849,120]
[377213237,1754293869750,-400.0,0.00046849,120]
[377213238,1754293869759,-1513.92,0.00046849,120]
[377213239,1754293869768,-400.0,0.00046849,120]
[377213240,1754293869779,-813.29,0.00046849,120]
[377213241,1754293869788,-437.17,0.00046849,120]
[377213242,1754293869798,-400.0,0.00046849,120]
[377213243,1754293869807,-1049.53,0.00046849,120]
[377213244,1754293869816,-526.18,0.00046849,120]
[377213245,1754293869826,-500.81,0.00046849,120]
[377213246,1754293869835,-400.0,0.00046849,120]
[377213247,1754293869844,-400.0,0.00046849,120]
[377213248,1754293869854,-400.0,0.00046849,120]
[377213249,1754293869863,-873.2,0.00046849,120]
[377213250,1754293869872,-400.0,0.00046849,120]
[377213251,1754293869882,-896.46,0.00046849,120]
[377213252,1754293869891,-400.0,0.00046849,120]
[377213253,1754293869900,-530.74,0.00046849,120]
[377213254,1754293869911,-400.0,0.00046849,120]
[377213255,1754293869920,-400.0,0.00046849,120]
[377213256,1754293869931,-400.0,0.00046849,120]
[377213257,1754293869940,-719.27,0.00046849,60]
[377213258,1754293869950,-400.0,0.00046849,120]
[377213259,1754293869960,-1129.12,0.00046849,120]
[377213260,1754293869969,-1306.33,0.00046849,120]
[377213261,1754293869978,-400.0,0.00046849,120]
[377213262,1754293869988,-400.0,0.00046849,120]
[377213263,1754293869997,-1027.78,0.00046849,120]
[377213264,1754293870007,-579.74,0.00046849,120]
[377213265,1754293870016,-400.0,0.00046849,120]
[377213266,1754293870025,-400.0,0.00046849,120]
[377213267,1754293870035,-400.0,0.00046849,120]
[377213268,1754293870044,-1501.77,0.00046849,120]
[377213269,1754293870054,-400.0,0.00046849,120]
[377213270,1754293870063,-187.53241024,0.00046849,120]
[377213271,1754293870072,-1144.48,0.00046849,120]
[377213272,1754293870081,-787.14,0.00046849,120]
[377213273,1754293870090,-424.15,0.00046849,120]
[377213274,1754293870100,-1075.35,0.00046849,120]
[377213275,1754293870109,-400.0,0.00046849,120]
[377213276,1754293870119,-400.0,0.00046849,120]
[377213277,1754293870136,-400.0,0.00046849,120]
[377213278,1754293870145,-1154.08,0.00046849,120]
[377213279,1754293870155,-1231.52,0.00046849,120]
[377213280,1754293870164,-159.92987412,0.00046849,120]
[377213281,1754293870173,-1045.44,0.00046849,120]
[377213282,1754293870184,-400.0,0.00046849,120]
[377213283,1754293870194,-400.0,0.00046849,120]
[377213284,1754293870206,-400.0,0.00046849,120]
[377213285,1754293870216,-1507.65,0.00046849,120]
[377213286,1754293870226,-400.0,0.00046849,120]
[377213287,1754293870235,-400.0,0.00046849,120]
[377213288,1754293870244,-400.0,0.00046849,120]
[377213289,1754293870254,-1346.51,0.00046849,120]
[377213290,1754293870263,-400.0,0.00046849,120]
[377213291,1754293870272,-574.4,0.00046849,120]
[377213292,1754293870281,-1541.56,0.00046849,120]
[377213293,1754293870291,-400.0,0.00046849,120]
[377213294,1754293870300,-400.0,0.00046849,120]
[377213295,1754293870309,-400.0,0.00046849,120]
[377213296,1754293870318,-400.0,0.00046849,120]
[377213297,1754293870328,-405.99708105,0.00046849,120]
[377213298,1754293870337,-400.0,0.00046849,120]
[377213299,1754293870346,-330.24032336,0.00046849,120]
[377213300,1754293870356,-549.06,0.00046849,120]
[377213301,1754293870365,-619.68,0.00046849,120]
[377213302,1754293870375,-400.0,0.00046849,120]
[377213303,1754293870384,-401.00945488,0.00046849,120]
[377213304,1754293870393,-931.11,0.00046849,120]
[377213305,1754293870403,-400.0,0.00046849,120]
[377213306,1754293870412,-400.0,0.00046849,120]
[377213307,1754293870421,-400.0,0.00046849,120]
[377213308,1754293870430,-1282.55,0.00046849,120]
[377213309,1754293870439,-400.0,0.00046849,120]
[377213310,1754293870448,-400.0,0.00046849,120]
[377213311,1754293870458,-400.0,0.00046849,120]
[377213312,1754293870467,-424.59,0.00046849,120]
[377213313,1754293870476,-540.05,0.00046849,120]
[377213314,1754293870485,-1601.38,0.00046849,120]
[377213315,1754293870494,-497.01,0.00046849,120]
[377213316,1754293870503,-400.0,0.00046849,120]
[377213317,1754293870513,-411.41,0.00046849,120]
[377213318,1754293870522,-859.88,0.00046849,120]
[377213319,1754293870532,-1368.58,0.00046849,120]
[377213320,1754293870542,-400.0,0.00046849,120]
[377213321,1754293870550,-400.0,0.00046849,120]
[377213322,1754293870560,-400.0,0.00046849,120]
[377213323,1754293870569,-414.84042831,0.00046849,120]
[377213324,1754293870578,-604.06,0.00046849,120]
[377213325,1754293870588,-521.05933806,0.00046849,120]
[377213326,1754293870597,-1067.68,0.00046849,120]
[377213327,1754293870607,-400.0,0.00046849,120]
[377213328,1754293870616,-432.95,0.00046849,120]
[377213329,1754293870625,-400.0,0.00046849,120]
[377213330,1754293870634,-799.01,0.00046849,120]
[377213331,1754293870644,-1039.58,0.00046849,120]
[377213332,1754293870653,-676.44,0.00046849,120]
[377213333,1754293870662,-1118.49,0.00046849,120]
[377213334,1754293870672,-400.0,0.00046849,120]
[377213335,1754293870681,-812.3,0.00046849,120]
[377213336,1754293870691,-1170.49,0.00046849,120]
[377213337,1754293870700,-842.24,0.00046849,120]
[377213338,1754293870710,-403.93778759,0.00046849,120]
[377213339,1754293870719,-400.0,0.00046849,120]
[377213340,1754293870728,-775.69,0.00046849,120]
[377213341,1754293870737,-725.25,0.00046849,120]
[377213342,1754293870747,-400.0,0.00046849,120]
[377213343,1754293870756,-503.62949339,0.00046849,120]
[377213344,1754293870766,-400.0,0.00046849,120]
[377213345,1754293870775,-303.10329159,0.00046849,120]
[377213346,1754293870786,-1677.71,0.00046849,120]
[377213347,1754293870795,-919.45,0.00046849,120]
[377213348,1754293870806,-400.0,0.00046849,120]
[377213349,1754293870815,-1104.38,0.00046849,120]
[377213350,1754293870825,-653.67,0.00046849,120]
[377213351,1754293870834,-400.0,0.00046849,120]
[377213352,1754293870844,-400.0,0.00046849,120]
[377213353,1754293870854,-587.51,0.00046849,120]
[377213354,1754293870863,-400.0,0.00046849,120]
[377213355,1754293870873,-400.0,0.00046849,120]
[377213356,1754293870883,-402.19964621,0.00046849,120]
[377213357,1754293870892,-400.0,0.00046849,120]
[377213358,1754293870902,-400.0,0.00046849,120]
[377213359,1754293870912,-411.89,0.00046849,120]
[377213360,1754293870922,-402.30436553,0.00046849,120]
[377213361,1754293870932,-400.0,0.00046849,120]
[377213362,1754293870942,-435.17,0.00046849,120]
[377213363,1754293870952,-693.13,0.00046849,120]
[377213364,1754293870962,-1946.89,0.00046849,120]
[377213365,1754293870972,-400.0,0.00046849,120]
[377213366,1754293870983,-506.67,0.00046849,120]
[377213367,1754293870992,-400.0,0.00046849,120]
[377213368,1754293871002,-1192.58,0.00046849,120]
[377213369,1754293871012,-400.0,0.00046849,120]
[377213370,1754293871022,-196.48674132,0.00046849,120]
[377213371,1754293871033,-706.49,0.00046849,120]
[377213372,1754293871043,-151.0,0.00046849,14]
[377213373,1754293871052,-401.92744077,0.00046849,120]
[377213374,1754293871062,-151.0,0.00046849,14]
[377213375,1754293871072,-585.34,0.00046849,120]
[377213376,1754293871083,-1045.87,0.00046849,120]
[377213377,1754293871092,-523.21,0.00046849,120]
[377213378,1754293871102,-537.59512752,0.00046849,120]
[377213379,1754293871111,-1584.22,0.00046849,120]
[377213380,1754293871124,-403.63913045,0.00046849,120]
[377213381,1754293871134,-400.0,0.00046849,120]
[377213382,1754293871143,-400.0,0.00046849,120]
[377213383,1754293871153,-408.15,0.00046849,120]
[377213384,1754293871163,-400.0,0.00046849,120]
[377213385,1754293871172,-826.15,0.00046849,120]
[377213386,1754293871182,-400.0,0.00046849,120]
[377213387,1754293871196,-714.58,0.00046849,120]
[377213388,1754293871206,-1564.15,0.00046849,120]
[377213389,1754293871216,-415.61,0.00046849,120]
[377213390,1754293871225,-434.68,0.00046849,120]
[377213391,1754293871235,-400.0,0.00046849,120]
[377213392,1754293871245,-417.7282538,0.00046849,120]
[377213393,1754293871254,-473.92,0.00046849,120]
[377213394,1754293871264,-400.0,0.00046849,120]
[377213395,1754293871273,-400.0,0.00046849,120]
[377213396,1754293871283,-400.0,0.00046849,120]
[377213397,1754293871293,-400.0,0.00046849,120]
[377213398,1754293871302,-496.82,0.00046849,120]
[377213399,1754293871312,-298.03736,0.00046849,14]
[377213400,1754293871322,-298.03736,0.00046849,14]
[377213401,1754293871331,-466.13,0.00046849,120]
[377213402,1754293871341,-400.0,0.00046849,120]
[377213403,1754293871351,-400.0,0.00046849,120]
[377213404,1754293871361,-950.9,0.00046849,120]
[377213405,1754293871371,-1291.26,0.00046849,120]
[377213406,1754293871380,-298.03736,0.00046849,14]
[377213407,1754293871390,-1325.57,0.00046849,120]
[377213408,1754293871400,-667.22,0.00046849,120]
[377213409,1754293871410,-298.03736,0.00046849,14]
[377213410,1754293871419,-450.66,0.00046849,120]
[377213411,1754293871430,-810.73,0.00046849,120]
[377213412,1754293871439,-464.6057673,0.00046849,120]
[377213413,1754293871449,-400.0,0.00046849,120]
[377213414,1754293871459,-400.0,0.00046849,120]
[377213415,1754293871468,-400.0,0.00046849,120]
[377213416,1754293871478,-400.0,0.00046849,120]
[377213417,1754293871488,-400.0,0.00046849,120]
[377213418,1754293871498,-400.0,0.00046849,120]
[377213419,1754293871508,-400.0,0.00046849,120]
[377213420,1754293871518,-964.63,0.00046849,120]
[377213421,1754293871528,-400.0,0.00046849,120]
[377213422,1754293871538,-413.37,0.00046849,120]
[377213423,1754293871548,-887.25,0.00046849,120]
[377213424,1754293871558,-400.0,0.00046849,120]
[377213425,1754293871567,-400.0,0.00046849,90]
[377213426,1754293871577,-400.0,0.00046849,120]
[377213427,1754293871586,-400.0,0.00046849,120]
[377213428,1754293871596,-400.0,0.00046849,120]
[377213429,1754293871605,-400.0,0.00046849,120]
[377213430,1754293871615,-1486.46,0.00046849,120]
[377213431,1754293871625,-235.489405,0.00046849,14]
[377213432,1754293871635,-400.0,0.00046849,120]
[377213433,1754293871645,-400.0,0.00046849,120]
[377213434,1754293871655,-235.489405,0.00046849,14]
[377213435,1754293871665,-400.0,0.00046849,120]
[377213436,1754293871675,-1456.67,0.00046849,120]
[377213437,1754293871685,-400.0,0.00046849,120]
[377213438,1754293871695,-1083.36,0.00046849,120]
[377213439,1754293871705,-400.0,0.00046849,120]
[377213440,1754293871715,-1681.82,0.00046849,120]
[377213441,1754293871725,-553.44,0.00046849,120]
[377213442,1754293871735,-235.489405,0.00046849,14]
[377213443,1754293871746,-400.0,0.00046849,120]
[377213444,1754293871755,-235.489405,0.00046849,14]
[377213445,1754293871766,-400.0,0.00046849,120]
[377213446,1754293871776,-400.0,0.00046849,120]
[377213447,1754293871787,-400.0,0.00046849,120]
[377213448,1754293871796,-157.97721988,0.00046849,120]
[377213449,1754293871806,-400.0,0.00046849,120]
[377213450,1754293871818,-400.0,0.00046849,120]
[377213451,1754293871828,-400.0,0.00046849,120]
[377213452,1754293871838,-400.0,0.00046849,120]
[377213453,1754293871848,-799.86,0.00046849,120]
[377213454,1754293871858,-400.0,0.00046849,120]
[377213455,1754293871868,-400.0,0.00046849,120]
[377213456,1754293871878,-577.51,0.00046849,120]
[377213457,1754293871889,-659.72,0.00046849,120]
[377213458,1754293871899,-1186.51,0.00046849,120]
[377213459,1754293871910,-400.0,0.00046849,120]
[377213460,1754293871920,-400.0,0.00046849,120]
[377213461,1754293871931,-696.02,0.00046849,120]
[377213462,1754293871941,-845.58,0.00046849,120]
[377213463,1754293871951,-400.0,0.00046849,120]
[377213464,1754293871961,-400.0,0.00046849,120]
[377213465,1754293871972,-659.378176,0.00046849,14]
[377213466,1754293871983,-400.0,0.00046849,120]
[377213467,1754293871994,-400.0,0.00046849,120]
[377213468,1754293872004,-659.378176,0.00046849,14]
[377213469,1754293872015,-969.57,0.00046849,120]
[377213470,1754293872025,-400.0,0.00046849,120]
[377213471,1754293872036,-400.0,0.00046849,120]
[377213472,1754293872046,-607.9,0.00046849,120]
[377213473,1754293872057,-1571.19,0.00046849,120]
[377213474,1754293872067,-1836.46,0.00046849,120]
[377213475,1754293872077,-400.0,0.00046849,120]
[377213476,1754293872087,-462.55717308,0.00046849,120]
[377213477,1754293872097,-659.378176,0.00046849,14]
[377213478,1754293872107,-659.378176,0.00046849,14]
[377213479,1754293872117,-400.0,0.00046849,120]
[377213480,1754293872130,-1266.42,0.00046849,120]
[377213481,1754293872140,-400.0,0.00046849,120]
[377213482,1754293872150,-1206.73,0.00046849,120]
[377213483,1754293872161,-400.0,0.00046849,120]
[377213484,1754293872172,-1104.65,0.00046849,120]
[377213485,1754293872182,-294.898648,0.00046849,14]
[377213486,1754293872192,-294.898648,0.00046849,14]
[377213487,1754293872205,-683.431269,0.00046849,14]
[377213488,1754293872217,-400.0,0.00046849,120]
[377213489,1754293872227,-400.0,0.00046849,120]
[377213490,1754293872237,-1300.3,0.00046849,120]
[377213491,1754293872247,-606.02,0.00046849,120]
[377213492,1754293872257,-400.0,0.00046849,120]
[377213493,1754293872268,-400.0,0.00046849,120]
[377213494,1754293872278,-683.431269,0.00046849,14]
[377213495,1754293872289,-1071.82,0.00046849,120]
[377213496,1754293872301,-1618.43,0.00046849,120]
[377213497,1754293872311,-400.0,0.00046849,120]
[377213498,1754293872322,-294.898648,0.00046849,14]
[377213499,1754293872332,-1113.83,0.00046849,120]
[377213500,1754293872343,-294.898648,0.00046849,14]
[377213501,1754293872353,-400.0,0.00046849,120]
[377213502,1754293872363,-1254.04,0.00046849,120]
[377213503,1754293872373,-447.81040706,0.00046849,120]
[377213504,1754293872383,-1359.282655,0.00046849,14]
[377213505,1754293872393,-410.45,0.00046849,120]
[377213506,1754293872403,-1359.282655,0.00046849,14]
[377213507,1754293872413,-683.431269,0.00046849,14]
[377213508,1754293872423,-683.431269,0.00046849,14]
[377213509,1754293872434,-473.95,0.00046849,120]
[377213510,1754293872444,-400.0,0.00046849,120]
[377213511,1754293872454,-700.37,0.00046849,120]
[377213512,1754293872464,-1009.38,0.00046849,120]
[377213513,1754293872474,-1359.282655,0.00046849,14]
[377213514,1754293872485,-1359.282655,0.00046849,14]
[377213515,1754293872495,-400.0,0.00046849,120]
[377213516,1754293872504,-1065.39,0.00046849,120]
[377213517,1754293872514,-400.0,0.00046849,120]
[377213518,1754293872524,-400.0,0.00046849,120]
[377213519,1754293872534,-1101.07,0.00046849,120]
[377213520,1754293872544,-400.0,0.00046849,120]
[377213521,1754293872554,-403.64864684,0.00046849,120]
[377213522,1754293872564,-400.0,0.00046849,120]
[377213523,1754293872574,-400.0,0.00046849,120]
[377213524,1754293872584,-400.0,0.00046849,120]
[377213525,1754293872594,-837.05,0.00046849,120]
[377213526,1754293872604,-400.0,0.00046849,120]
[377213527,1754293872613,-628.33,0.00046849,120]